Cogmind - Beta 16 @@@ ROGUE MODE // 2026.01.20 @ 15:04:29 Player: Lunishko Result: Self-destructed Performance ------------- Evolutions (7) 3500 Regions Visited (14) 2800 Robots Destroyed (18) 90 Value Destroyed (652) 652 Prototype IDs (8) 160 Alien Tech Used (0) 0 Bonus (1802) 1802 TOTAL SCORE: 9004 Bonus ------- Follower Combat Kills 1572 Registered with UFD 300 Friendly Fire -70 Cogmind --------- Core Integrity 967/1300 Matter 284/300 Energy 12/100 System Corruption 3% Temperature Cool (0) Movement Core (100) Ox1 Location -3/Research Parts ------- > --- POWER (1) -------- (None) > --- PROPULSION (2) --- Combat Airjet Antigrav System > --- UTILITY (16) ----- Enhanced Optical Array Spectral Analyzer Signal Interpreter Improved Signal Interpreter Improved Terrain Scanner Armor Integrity Analyzer Hacking Suite System Shield Dynamic Insulation System > --- WEAPON (2) ------- Heavy Mace > --- INVENTORY (5) ---- Nuclear Core Heavy Beamcaster Heavy Machine Gun Peak State ------------ > --- POWER ------------ Light Nuclear Core > --- PROPULSION ------- Combat Airjet Combat Airjet > --- UTILITY ---------- Advanced Power Amplifier Compact Matter Pod Enhanced Optical Array Spectral Analyzer Improved Sensor Array Signal Interpreter Improved Signal Interpreter Improved Terrain Scanner Armor Integrity Analyzer ECM Suite Thermal Shield Improved Shield Generator Hacking Suite System Shield Improved System Shield Dynamic Insulation System > --- WEAPON ----------- Heavy Battle Rifle Axe > --- INVENTORY -------- Nuclear Core Antigrav System Antigrav System Heavy Beamcaster Hardcell Cannon [Rating: 85] Favorites ----------- Power Light Nuclear Core Engine Light Ion Engine Power Core Light Nuclear Core Propulsion Improved Treads Treads Improved Treads Wheel Wheel Hover Unit Combat Airjet Utility Signal Interpreter Device Improved Terrain Scanner Storage Large Storage Unit Processor Signal Interpreter Hackware Hacking Suite Protection Hardened Light Armor Plating Weapon Heavy Battle Rifle Energy Gun EM Pulse Gun Energy Cannon EM Pulse Cannon Ballistic Gun Heavy Battle Rifle Ballistic Cannon Assault Cannon Launcher Mini Grenade Launcher Special Weapon Mining Laser Impact Weapon Heavy Mace Slashing Weapon Axe Build | -11 -10 -10 -8 -6 -6 -6 -5 -5 -5 -4 -4 -4 -4 -3 ------- Run | Yrd Mat Sub Scr Fac Was Fac Fac Upp War Pro Fac Upp Upp Res Slots Evolved 14 | . . . . 8 . . 2 . . . 2 . . 2 Power . | . . . . . . . . . . . . . . . Propulsion . | . . . . . . . . . . . . . . . Utility 14 | . . . . 8 . . 2 . . . 2 . . 2 Weapon . | . . . . . . . . . . . . . . . Parts Attached 52 | 9 2 . 3 7 2 3 8 4 . . 1 4 . 9 Power 3 | 1 . . . 1 . . 1 . . . . . . . Engine 2 | 1 . . . 1 . . . . . . . . . . Core 1 | . . . . . . . 1 . . . . . . . Reactor . | . . . . . . . . . . . . . . . Propulsion 10 | 3 . . 2 . . . . 1 . . . 2 . 2 Treads 5 | 2 . . 2 . . . . 1 . . . . . . Leg . | . . . . . . . . . . . . . . . Wheel 1 | 1 . . . . . . . . . . . . . . Hover 4 | . . . . . . . . . . . . 2 . 2 Flight . | . . . . . . . . . . . . . . . Utility 25 | 2 2 . 1 3 2 1 5 2 . . 1 2 . 4 Device 14 | 2 1 . . 2 1 . 2 1 . . 1 1 . 3 Storage 2 | . . . 1 . . . . 1 . . . . . . Processor 5 | . 1 . . . . 1 2 . . . . . . 1 Hackware 3 | . . . . 1 . . 1 . . . . 1 . . Protection 1 | . . . . . 1 . . . . . . . . . Artifact . | . . . . . . . . . . . . . . . Weapon 14 | 3 . . . 3 . 2 2 1 . . . . . 3 Energy Gun 2 | 1 . . . . . . . . . . . . . 1 Energy Cannon 1 | . . . . 1 . . . . . . . . . . Ballistic Gun 3 | 1 . . . . . 1 . 1 . . . . . . Ballistic Cannon 2 | . . . . . . 1 . . . . . . . 1 Launcher 3 | . . . . 2 . . 1 . . . . . . . Special Weapon 1 | 1 . . . . . . . . . . . . . . Impact Weapon 1 | . . . . . . . . . . . . . . 1 Slashing Weapon 1 | . . . . . . . 1 . . . . . . . Piercing Weapon . | . . . . . . . . . . . . . . . Special Melee Weapon . | . . . . . . . . . . . . . . . Unidentified Prototypes 2 | . . . . . 1 . . . . . . . . 1 Parts Lost 18 | . . . . . . . 5 . . 1 . . . 12 Power 2 | . . . . . . . 1 . . . . . . 1 Propulsion 3 | . . . . . . . . . . 1 . . . 2 Utility 10 | . . . . . . . 3 . . . . . . 7 Weapon 3 | . . . . . . . 1 . . . . . . 2 Highest Loss Streak 7 | . . . . . . . 3 . . 1 . . . 7 To Critical Strikes . | . . . . . . . . . . . . . . . Average Backups 11 | . 4 5 11 8 9 12 14 14 15 14 14 5 5 4 Power 2 | . 1 1 2 3 3 3 2 2 2 2 2 1 1 1 Propulsion 1 | . . . . . . . 2 4 5 4 4 1 . . Utility 1 | . 1 2 3 . . . . . . . . . 1 . Weapon 6 | . 2 2 5 5 5 8 8 8 8 7 7 3 3 2 Tool/Special . | . . . . . . . . . . . . . . . Unused Backups 9 | . . . . . . . 1 . . 1 . 5 . 2 Power 1 | . . . . . . . . . . . . . . 1 Propulsion 3 | . . . . . . . . . . . . 3 . . Utility . | . . . . . . . . . . . . . . . Weapon 5 | . . . . . . . 1 . . 1 . 2 . 1 Tool/Special . | . . . . . . . . . . . . . . . Average Slot Usage (%) 88 | . 42 42 73 75 86 90 96 99 100 99 92 91 100 86 Engine 3 | . . . 9 6 6 6 . . . . . . . . Core 2 | . . . . . . . 4 5 5 5 5 5 5 3 Treads 11 | . . . 21 13 13 13 11 11 11 10 10 . . . Hover 1 | . . . . . . . . . . . . 9 10 8 Device 20 | . 26 14 3 23 33 33 27 22 23 23 24 26 31 24 Storage 8 | . . . 10 6 6 6 5 10 11 11 10 5 5 3 Processor 18 | . 1 14 14 6 6 10 21 23 23 23 21 21 21 21 Hackware 7 | . . . . 5 6 6 10 11 11 11 10 11 15 13 Ballistic Gun 2 | . . . . . . 4 . 4 5 5 5 5 5 2 Launcher 3 | . . . . 9 13 3 5 5 5 5 1 . . . Special Weapon 3 | . 14 14 14 . . . . . . . . . . . Slashing Weapon 1 | . . . . . . . 3 . . . 3 5 5 3 Peak Build Rating 85 | 5 5 3 14 31 47 39 56 59 58 60 69 72 72 85 Average Rating 42 | 2 4 3 10 27 31 36 52 56 58 58 65 65 72 73 On Entrance 37 | . 5 3 3 14 31 33 38 52 58 58 60 69 72 72 Avg Prop Armor Cover (%) . | . . . . . . . . . . . . . . . Naked Turns . | . . . . . . . . . . . . . . . Heaviest Build 44 | 7 3 2 24 42 42 43 43 39 39 39 44 44 25 27 Greatest Support 50 | 20 3 3 43 43 43 43 43 50 50 50 47 47 26 26 Greatest Overweight (x) 6 | 2 . . 6 . . . . . . 1 . . . 1 Average Overweight (x) . | 1 . . . . . . . . . . . . . . Largest Inventory Capacity 15 | 5 5 5 15 15 15 15 15 15 15 15 15 15 5 5 Average Capacity 12 | 5 5 5 12 15 15 15 15 15 15 15 15 5 5 5 Most Carried 15 | 4 5 5 15 15 14 15 15 15 15 15 15 15 5 5 Average Carried 11 | . 4 5 12 10 11 13 14 14 15 14 14 5 5 4 Final Capacity 15 | 5 5 5 15 15 15 15 15 15 15 15 15 5 5 5 Final Carried 15 | 3 5 5 15 10 14 15 14 15 15 14 15 5 5 3 Class Distribution -------------------- 43% | Derelict-Skirmisher 28% | Mutant 13% | Hacker-Ninja 11% | Derelict-Assassin Dominant Class ---------------- Mutant | -10/Materials Mutant | -10/Subcaves Mutant | -8/Scraptown Derelict-Skirmisher | -6/Factory Derelict-Skirmisher | -6/Waste Derelict-Skirmisher | -6/Factory Derelict-Assassin | -5/Factory Derelict-Skirmisher | -5/Upper Caves Derelict-Skirmisher | -5/Warlord Derelict-Skirmisher | -4/Proximity Caves Derelict-Assassin | -4/Factory Hacker-Ninja | -4/Upper Caves Hacker-Ninja | -4/Upper Caves Hacker-Ninja | -3/Research Resources | -11 -10 -10 -8 -6 -6 -6 -5 -5 -5 -4 -4 -4 -4 -3 ----------- Run | Yrd Mat Sub Scr Fac Was Fac Fac Upp War Pro Fac Upp Upp Res Matter Collected 1199 | 304 . . 90 . 150 56 183 196 . 114 . 63 . 43 Remotely 389 | . . . . . 150 56 183 . . . . . . . Salvage Created 539 | 71 . . . . . 119 54 48 . 99 . . . 148 Parts 31 | 12 . . . . . 7 2 3 . 4 . . . 3 Haulers Intercepted . | . . . . . . . . . . . . . . . Recyclers Shooed . | . . . . . . . . . . . . . . . Parts Field Recycled . | . . . . . . . . . . . . . . . Retrieved Matter . | . . . . . . . . . . . . . . . Parts Self-Destructed 19 | . . . . . . . . . . 16 . . 3 . Prevented 2 | . . . . . . . . 2 . . . . . . Parts Restored . | . . . . . . . . . . . . . . . Kills | -11 -10 -10 -8 -6 -6 -6 -5 -5 -5 -4 -4 -4 -4 -3 ------- Run | Yrd Mat Sub Scr Fac Was Fac Fac Upp War Pro Fac Upp Upp Res Combat Hostiles Destroyed 7 | . . . . . . . . 1 . 2 . . . 4 Guns 3 | . . . . . . . . . . . . . . 3 Cannons 1 | . . . . . . . . . . . . . . 1 AOE 3 | . . . . . . . . 1 . 2 . . . . Classes Destroyed 8 | 1 . . . 1 . 2 . 1 . 1 . . . 2 Worker 4 | . . . . . . 2 2 . . . . . . . Tunneler 4 | 4 . . . . . . . . . . . . . . Recycler 1 | . . . . . . 1 . . . . . . . . Operator 1 | . . . . 1 . . . . . . . . . . Watcher 1 | . . . . . . . . . . . . . . 1 Swarmer 4 | . . . . . . . . . . . . . . 4 Grunt 2 | . . . . . . . . . . 2 . . . . Hunter 1 | . . . . . . . . 1 . . . . . . Best Kill Streak 4 | 3 . . . 1 . 3 1 1 . 2 . . . 4 Combat Bots Only 4 | . . . . . . . . 1 . 2 . . . 4 Max Kills in Single Turn 2 | 1 . . . 1 . 2 1 1 . 2 . . . 1 Gunslinging . | . . . . . . . . . . . . . . . Exploded 2 | . . . . . . . . 1 . 2 . . . . Melee . | . . . . . . . . . . . . . . . Uniques/NPCs Destroyed . | . . . . . . . . . . . . . . . Combat | -11 -10 -10 -8 -6 -6 -6 -5 -5 -5 -4 -4 -4 -4 -3 -------- Run | Yrd Mat Sub Scr Fac Was Fac Fac Upp War Pro Fac Upp Upp Res Hostile Shots Fired 224 | . . . . . . . 58 . . 31 . 29 . 106 Missed 90 | . . . . . . . 18 . . 13 . 8 . 51 Hits 134 | . . . . . . . 40 . . 18 . 21 . 55 Projectile 134 | . . . . . . . 40 . . 18 . 21 . 55 Critical Strikes 7 | . . . . . . . 2 . . 2 . . . 3 Part Disruptions 2 | . . . . . . . . . . . . . . 2 Actively Blocked 2 | . . . . . . . . . . . . . . 2 Damage Taken 2596 | . . . . 24 . 39 840 . . 346 . 85 . 1262 Core 506 | . . . . . . 16 98 . . 59 . . . 333 Absorbed by Shields 107 | . . . . . . . . . . 70 . 31 . 6 Regen/Repaired (Parts) 86 | . . . . . . . 86 . . . . . . . Core Remaining (%) 96 | 100 . . 100 . . 98 . . . 84 . . 100 . Volleys Fired 52 | 8 3 . . 4 . 2 8 3 . 10 . 1 . 13 Largest 2 | 2 1 . . 1 . 1 2 2 . 1 . 1 . 2 Hottest 136 | 60 100 . . 63 . 36 66 66 . 33 . 33 . 136 Shots Fired 70 | 13 3 . . 4 . 2 11 5 . 10 . 1 . 21 Gun 31 | 13 . . . . . . . . . 5 . 1 . 12 Cannon 10 | . . . . 1 . . . . . . . . . 9 Launcher 26 | . . . . 3 . 2 11 5 . 5 . . . . Special 3 | . 3 . . . . . . . . . . . . . Kinetic 27 | 8 . . . . . . . . . 5 . 1 . 13 Thermal 11 | . 3 . . . . . . . . . . . . 8 Explosive 17 | . . . . 3 . 2 4 3 . 5 . . . . Electromagnetic 15 | 5 . . . 1 . . 7 2 . . . . . . Robot Hit Streak 5 | 2 . . . . . 2 2 3 . 5 . . . 5 Robot Miss Streak 2 | 2 . . . 1 . . 1 . . 1 . . . 2 Penetration Max . | . . . . . . . . . . . . . . . Secondary Targets 1 | . . . . . . . . . . . . . . 1 Max Gunslinging Chain 1 | . . . . . . . . . . . . . . 1 Shots Hit Robots 35 | 7 . . . . . 2 3 3 . 5 . . . 15 Core Hits 51 | 4 . . . 2 . 7 14 1 . 13 . . . 10 Critical Kills . | . . . . . . . . . . . . . . . Critical Parts Destroyed . | . . . . . . . . . . . . . . . Critical Strikes 1 | . . . . . . . . . . . . . . 1 Sever 1 | . . . . . . . . . . . . . . 1 Melee Attacks 38 | . . . . . . . 2 . . . . 10 5 21 Impact 2 | . . . . . . . . . . . . . . 2 Slashing 36 | . . . . . . . 2 . . . . 10 5 19 Piercing . | . . . . . . . . . . . . . . . Sneak Attacks 1 | . . . . . . . 1 . . . . . . . Combat Hostiles . | . . . . . . . . . . . . . . . Follow-up Attacks . | . . . . . . . . . . . . . . . Damage Inflicted 2066 | 90 . . . 105 . 393 470 104 . 453 . . . 451 Guns 367 | 90 . . . . . . . . . 84 . . . 193 Cannons 151 | . . . . . . . . . . . . . . 151 Explosions 1363 | . . . . 105 . 393 392 104 . 369 . . . . Melee 185 | . . . . . . . 78 . . . . . . 107 Ramming . | . . . . . . . . . . . . . . . Kinetic 366 | 75 . . . . . . . . . 84 . . . 207 Thermal 226 | . . . . 89 . . . . . . . . . 137 Explosive 1035 | . . . . 16 . 393 206 51 . 369 . . . . Electromagnetic 254 | 15 . . . . . . 186 53 . . . . . . Impact . | . . . . . . . . . . . . . . . Slashing 185 | . . . . . . . 78 . . . . . . 107 Piercing . | . . . . . . . . . . . . . . . Highest Corruption 3 | . . . . . . . . . . . . . . 3 Average Corruption 2 | . . . . . . . . . . . . . . 2 Corruption Purged . | . . . . . . . . . . . . . . . Corruption Blocked . | . . . . . . . . . . . . . . . Effects 1 | . . . . . . . . . . . . . . 1 Data Loss (major) 1 | . . . . . . . . . . . . . . 1 Overload Shots . | . . . . . . . . . . . . . . . Overflow Damage 52 | . . . . . . . 48 . . . . . . 4 Projectiles 4 | . . . . . . . . . . . . . . 4 Explosions 10 | . . . . . . . 10 . . . . . . . Melee 38 | . . . . . . . 38 . . . . . . . Knockbacks 2 | . . . . . . . . . . . . . . 2 Impact . | . . . . . . . . . . . . . . . Kinetic 2 | . . . . . . . . . . . . . . 2 Secondary . | . . . . . . . . . . . . . . . Self-Inflicted Damage 114 | . . . . 26 . . 53 . . 35 . . . . Shots 4 | . . . . 1 . . 1 . . 2 . . . . Rammed . | . . . . . . . . . . . . . . . Targets Rammed . | . . . . . . . . . . . . . . . Kicked . | . . . . . . . . . . . . . . . Crushed . | . . . . . . . . . . . . . . . Highest Temperature 144 | . 25 . . . . . 23 . . 10 . . . 144 Average Temperature 52 | . 25 . . . . . 23 . . 10 . . . 59 Received Heat Transfer 446 | . . . . . . . 379 . . 67 . . . . Siege Activations . | . . . . . . . . . . . . . . . Martial Activations . | . . . . . . . . . . . . . . . Shielding Activations . | . . . . . . . . . . . . . . . Robots Disrupted . | . . . . . . . . . . . . . . . Combat Hostiles . | . . . . . . . . . . . . . . . Robots Corrupted . | . . . . . . . . . . . . . . . Combat Hostiles . | . . . . . . . . . . . . . . . Parts Fried . | . . . . . . . . . . . . . . . Impact Corruptions . | . . . . . . . . . . . . . . . Robots Melted . | . . . . . . . . . . . . . . . Combat Hostiles . | . . . . . . . . . . . . . . . Parts Melted 3 | . . . . 1 . . . . . . . . . 2 Heat Transferred 322 | . . . . 100 . . . . . . . . . 222 Parts Sabotaged . | . . . . . . . . . . . . . . . Parts Stolen . | . . . . . . . . . . . . . . . Parts Stripped . | . . . . . . . . . . . . . . . Power Chain Reactions . | . . . . . . . . . . . . . . . Alert | -11 -10 -10 -8 -6 -6 -6 -5 -5 -5 -4 -4 -4 -4 -3 ------- Run | Yrd Mat Sub Scr Fac Was Fac Fac Upp War Pro Fac Upp Upp Res Maximum Alert Level 3 | . . . . . . 3 2 . . . . . . . Low Security (%) 57 | 100 100 . . 100 100 25 11 . . . 100 . . 100 Level 1 29 | . . . . . . 13 76 . . . . . . . Level 2 11 | . . . . . . 50 12 . . . . . . . Level 3 1 | . . . . . . 10 . . . . . . . . Level 4 . | . . . . . . . . . . . . . . . Level 5 . | . . . . . . . . . . . . . . . High Security . | . . . . . . . . . . . . . . . Max Security . | . . . . . . . . . . . . . . . Peak Influence 715 | 5 5 . . 105 19 715 511 . . . . . . 57 Initial 315 | . . . . . 19 . 315 . . . . . . . Average 177 | 1 1 . . 44 1 441 315 . . . . . . 8 Influence Increases 2285 | 20 15 . . 105 . 845 968 37 . 157 . . . 138 Destroy 0b10 Robot/C 920 | . . . . . . 260 420 20 . 140 . . . 80 Destroy 0b10 Robot/NC 85 | 20 . . . 5 . 40 15 . . . . . . 5 Destroy Leader 156 | . . . . . . 44 90 10 . . . . . 12 Allied During Kill 726 | . . . . . . 344 358 7 . 17 . . . . Successful Hack 10 | . . . . . . . 10 . . . . . . . Disable Machine 255 | . 15 . . 60 . 120 45 . . . . . . 15 Destroy Structure 133 | . . . . 40 . 37 30 . . . . . . 26 Influence Decreases 2285 | 20 15 . . 50 55 200 1118 442 90 157 . . . 138 Entered New Map 640 | . . . . . 36 . 330 184 90 . . . . . Time Decay 1060 | 20 15 . . 50 19 140 368 238 . 147 . . . 63 Lost Part 135 | . . . . . . . 50 . . 10 . . . 75 Lost Ally 300 | . . . . . . 60 220 20 . . . . . . Purge Threat 150 | . . . . . . . 150 . . . . . . . Squads Dispatched 9 | . . . . 1 . 3 4 . . . . . . 1 Investigation . | . . . . . . . . . . . . . . . Extermination 4 | . . . . . . 1 2 . . . . . . 1 Reinforcement 4 | . . . . 1 . 2 1 . . . . . . . Assault . | . . . . . . . . . . . . . . . Garrison 1 | . . . . . . . 1 . . . . . . . Intercept . | . . . . . . . . . . . . . . . Searches Triggered . | . . . . . . . . . . . . . . . Construction Impeded . | . . . . . . . . . . . . . . . Haulers Reinforced . | . . . . . . . . . . . . . . . Active Scanning Responses . | . . . . . . . . . . . . . . . Cargo Convoy Interrupts . | . . . . . . . . . . . . . . . Stealth | -11 -10 -10 -8 -6 -6 -6 -5 -5 -5 -4 -4 -4 -4 -3 --------- Run | Yrd Mat Sub Scr Fac Was Fac Fac Upp War Pro Fac Upp Upp Res Distress Signals . | . . . . . . . . . . . . . . . Communications Jammed . | . . . . . . . . . . . . . . . Distress Signals . | . . . . . . . . . . . . . . . Times Spotted 63 | . . . . 2 . 10 20 1 . 9 . 6 . 15 Peak Tracking Total 8 | . . . . 1 . 4 8 1 . 7 . 5 . 6 Tactical Retreats 6 | . . . . . . . 2 . . 1 . 3 . . ECM-based Alert Blocks 11 | . . . . . . . 3 . . 1 . 7 . . Traps | -11 -10 -10 -8 -6 -6 -6 -5 -5 -5 -4 -4 -4 -4 -3 ------- Run | Yrd Mat Sub Scr Fac Was Fac Fac Upp War Pro Fac Upp Upp Res Traps Triggered 1 | . . . . 1 . . . . . . . . . . Indirectly . | . . . . . . . . . . . . . . . Trap Hack Attempts . | . . . . . . . . . . . . . . . Triggered . | . . . . . . . . . . . . . . . Disarmed . | . . . . . . . . . . . . . . . Reprogrammed . | . . . . . . . . . . . . . . . Reused . | . . . . . . . . . . . . . . . Traps Extracted . | . . . . . . . . . . . . . . . Installed . | . . . . . . . . . . . . . . . Triggered . | . . . . . . . . . . . . . . . Machines | -11 -10 -10 -8 -6 -6 -6 -5 -5 -5 -4 -4 -4 -4 -3 ---------- Run | Yrd Mat Sub Scr Fac Was Fac Fac Upp War Pro Fac Upp Upp Res Machines Disabled 20 | . 1 . . 4 . 8 3 . . 3 . . . 1 Max in Single Turn 4 | . 1 . . 4 . . 1 . . 2 . . . 1 Garrison Access 1 | . . . . . . . 1 . . . . . . . Machines Repaired . | . . . . . . . . . . . . . . . Machines Dismantled . | . . . . . . . . . . . . . . . Machines Sabotaged . | . . . . . . . . . . . . . . . Overloaded Fab Kills . | . . . . . . . . . . . . . . . Hacking | -11 -10 -10 -8 -6 -6 -6 -5 -5 -5 -4 -4 -4 -4 -3 --------- Run | Yrd Mat Sub Scr Fac Was Fac Fac Upp War Pro Fac Upp Upp Res Machines Accessed 12 | . . . 4 1 . . 3 1 . . . 1 . 2 Terminals 2 | . . . . . . . 1 . . . . . . 1 Fabricators . | . . . . . . . . . . . . . . . Repair Stations . | . . . . . . . . . . . . . . . Recycling Units . | . . . . . . . . . . . . . . . Scanalyzers 3 | . . . . 1 . . 1 . . . . . . 1 Garrison Access 1 | . . . . . . . 1 . . . . . . . Total Hacks 33 | . . . 15 4 . . 8 1 . . . 1 . 4 Successful 23 | . . . 15 3 . . 3 1 . . . 1 . . Failed 8 | . . . . . . . 4 . . . . . . 4 Catastrophic 1 | . . . . . . . 1 . . . . . . . Database Lockouts 2 | . . . . 1 . . 1 . . . . . . . Manual 4 | . . . 1 . . . . . . . . . . 3 Terminals 7 | . . . . . . . 4 . . . . . . 3 Fabricators . | . . . . . . . . . . . . . . . Repair Stations . | . . . . . . . . . . . . . . . Recycling Units . | . . . . . . . . . . . . . . . Scanalyzers 8 | . . . . 4 . . 3 . . . . . . 1 Garrison Access 1 | . . . . . . . 1 . . . . . . . Terminal Hacks 18 | . . . 15 . . . 1 1 . . . 1 . . Record 7 | . . . 7 . . . . . . . . . . . Robot Analysis 7 | . . . 7 . . . . . . . . . . . Open Door 2 | . . . . . . . . 1 . . . 1 . . Unreport Threat 1 | . . . . . . . 1 . . . . . . . Proto ID Catalog 1 | . . . 1 . . . . . . . . . . . Fabricator Hacks . | . . . . . . . . . . . . . . . Repair Station Hacks . | . . . . . . . . . . . . . . . Recycling Unit Hacks . | . . . . . . . . . . . . . . . Scanalyzer 4 | . . . . 3 . . 1 . . . . . . . Retrieve Study 4 | . . . . 3 . . 1 . . . . . . . Garrison Access Hacks 1 | . . . . . . . 1 . . . . . . . Seal Access 1 | . . . . . . . 1 . . . . . . . Unauthorized Hacks . | . . . . . . . . . . . . . . . Terminals . | . . . . . . . . . . . . . . . Fabricators . | . . . . . . . . . . . . . . . Repair Stations . | . . . . . . . . . . . . . . . Recycling Units . | . . . . . . . . . . . . . . . Scanalyzers . | . . . . . . . . . . . . . . . Garrison Access . | . . . . . . . . . . . . . . . Data Cores Recovered . | . . . . . . . . . . . . . . . Used . | . . . . . . . . . . . . . . . Hacking Detections 5 | . . . . 1 . . 2 . . . . . . 2 Full Trace Events . | . . . . . . . . . . . . . . . Feedback Events . | . . . . . . . . . . . . . . . Feedback Blocked . | . . . . . . . . . . . . . . . Robot Schematics Acquired . | . . . . . . . . . . . . . . . Robots Built . | . . . . . . . . . . . . . . . Authchips . | . . . . . . . . . . . . . . . Time . | . . . . . . . . . . . . . . . Total Robot Build Rating . | . . . . . . . . . . . . . . . Part Schematics Acquired . | . . . . . . . . . . . . . . . Parts Built . | . . . . . . . . . . . . . . . Authchips . | . . . . . . . . . . . . . . . Time . | . . . . . . . . . . . . . . . Total Part Build Rating . | . . . . . . . . . . . . . . . Part Studies Acquired 4 | . . . . 3 . . 1 . . . . . . . Parts Repaired . | . . . . . . . . . . . . . . . Time . | . . . . . . . . . . . . . . . Parts Recycled . | . . . . . . . . . . . . . . . Recycled Matter . | . . . . . . . . . . . . . . . Retrieved Matter . | . . . . . . . . . . . . . . . Retrieved Components . | . . . . . . . . . . . . . . . Parts Scanalyzed . | . . . . . . . . . . . . . . . Part Schematics Acquired . | . . . . . . . . . . . . . . . Parts Damaged . | . . . . . . . . . . . . . . . Bothacking | -11 -10 -10 -8 -6 -6 -6 -5 -5 -5 -4 -4 -4 -4 -3 ------------ Run | Yrd Mat Sub Scr Fac Was Fac Fac Upp War Pro Fac Upp Upp Res Used RIF Installer . | . . . . . . . . . . . . . . . Robots Hacked . | . . . . . . . . . . . . . . . Non-combat . | . . . . . . . . . . . . . . . Combat . | . . . . . . . . . . . . . . . Robot Hacks Applied . | . . . . . . . . . . . . . . . Relay Couplers Released . | . . . . . . . . . . . . . . . Fabnet Peak Effective % . | . . . . . . . . . . . . . . . Robots Rewired . | . . . . . . . . . . . . . . . Allies Hacked . | . . . . . . . . . . . . . . . Hacks Repelled . | . . . . . . . . . . . . . . . Allies | -11 -10 -10 -8 -6 -6 -6 -5 -5 -5 -4 -4 -4 -4 -3 -------- Run | Yrd Mat Sub Scr Fac Was Fac Fac Upp War Pro Fac Upp Upp Res Total Allies 21 | . . . . . 20 1 . . . . . . . . Largest Group 20 | . . . . . 20 20 16 2 2 2 . . . . Highest-Rated Group 794 | . . . . . 794 794 719 121 121 121 . . . . Highest-Rated Ally 75 | . . . . . 50 75 75 75 75 75 . . . . Total Orders 1 | . . . . . . . . . . 1 . . . . FOLLOW 1 | . . . . . . . . . . 1 . . . . Ally Attacks 283 | . . . . . . 105 146 4 . 28 . . . . Total Damage 6071 | . . . . . . 1892 3531 118 . 530 . . . . Kills 48 | . . . . . . 20 23 . . 5 . . . . Allies Corrupted 1 | . . . . . . . 1 . . . . . . . Allies Melted . | . . . . . . . . . . . . . . . Intel | -11 -10 -10 -8 -6 -6 -6 -5 -5 -5 -4 -4 -4 -4 -3 ------- Run | Yrd Mat Sub Scr Fac Was Fac Fac Upp War Pro Fac Upp Upp Res Active Infowar (turns) 5466 | 7 65 18 390 165 329 313 858 500 70 1457 125 444 317 408 Optics 4390 | . . . . . . 211 858 500 70 1457 125 444 317 408 Sensors 5221 | . 1 18 390 164 329 313 796 500 70 1457 125 444 317 297 Terrain 5052 | 2 64 . . 165 329 313 858 500 70 1457 125 444 317 408 Seismic 952 | 7 64 . . 140 329 313 99 . . . . . . . ECM 4839 | . . . . 141 329 313 858 500 70 1457 125 444 317 285 Robot Analysis Total 7 | . . . 7 . . . . . . . . . . . Derelict Logs Recovered 6 | . . . . . . . . 2 . 2 . 2 . . Drone Launches . | . . . . . . . . . . . . . . . Drone Recoveries . | . . . . . . . . . . . . . . . Exploration | -11 -10 -10 -8 -6 -6 -6 -5 -5 -5 -4 -4 -4 -4 -3 ------------- Run | Yrd Mat Sub Scr Fac Was Fac Fac Upp War Pro Fac Upp Upp Res Turns Passed 6979 | 94 66 18 1804 173 329 313 858 500 70 1457 125 444 317 411 Spaces Moved 4878 | 45 29 30 1603 89 178 164 487 294 43 835 71 515 127 368 Core 872 | 43 29 30 770 . . . . . . . . . . . Treads 3003 | 2 . . 833 89 178 164 487 294 43 835 71 7 . . Legs . | . . . . . . . . . . . . . . . Wheels . | . . . . . . . . . . . . . . . Hover 1003 | . . . . . . . . . . . . 508 127 368 Flight . | . . . . . . . . . . . . . . . Fastest Speed 50 | 50 50 50 50 165 165 165 165 165 165 165 170 77 77 66 Average Speed 127 | 114 50 50 111 165 165 165 165 165 165 167 170 78 77 77 Slowest Speed 350 | 160 50 50 350 165 165 165 165 165 165 250 170 170 77 150 Overloaded Moves . | . . . . . . . . . . . . . . . Propulsion Burnouts . | . . . . . . . . . . . . . . . Robots Hopped . | . . . . . . . . . . . . . . . Potential Cave-ins . | . . . . . . . . . . . . . . . Cave-ins Triggered . | . . . . . . . . . . . . . . . Exploration Rate (%) 28 | 3 5 3 90 4 80 7 15 40 10 84 2 66 12 12 Regions Visited 14 Branch Regions 7 Pre-discovered Areas 1 | . . . . . . . . 1 . . . . . . Known Exits Taken 11 | . 1 1 1 . . 1 1 1 1 1 1 1 1 . Unknown Exits Taken 1 | 1 . . . . . . . . . . . . . . Scrap Searched 10 | . . . 5 . . . . 3 . 1 . 1 . . Spaces Dug 27 | . . . . . . . . . . 8 . 5 2 12 Terrain Destroyed 128 | . . . . 42 . 6 13 25 . 22 . 5 2 13 Melee 17 | . . . . . . . . . . . . 5 2 10 Projectile 3 | . . . . . . . . . . . . . . 3 AOE 108 | . . . . 42 . 6 13 25 . 22 . . . . Terrain Rammed . | . . . . . . . . . . . . . . . Walls Destroyed . | . . . . . . . . . . . . . . . Machines Disabled . | . . . . . . . . . . . . . . . Actions | -11 -10 -10 -8 -6 -6 -6 -5 -5 -5 -4 -4 -4 -4 -3 --------- Run | Yrd Mat Sub Scr Fac Was Fac Fac Upp War Pro Fac Upp Upp Res Total 5469 | 74 70 32 1628 111 213 204 524 303 42 886 75 537 337 433 Wait 374 | . 35 3 5 6 28 30 9 . . 37 . 1 206 14 Move 4865 | 44 28 29 1602 89 177 163 486 293 42 834 70 514 126 368 Hop . | . . . . . . . . . . . . . . . Pick Up 43 | 3 2 . 14 2 4 4 5 1 . 2 2 1 . 3 Fast Attach 21 | 6 . . 1 . 2 1 3 1 . . . 3 . 4 Attach 26 | 5 . . 3 7 . . 4 1 . 1 1 . . 4 Detach 5 | 5 . . . . . . . . . . . . . . Swap 20 | . 2 . . 3 . 2 5 3 . . 1 2 . 2 Drop 25 | 3 . . 3 . 2 2 2 1 . 2 1 5 . 4 Fire 52 | 8 3 . . 4 . 2 8 3 . 10 . 1 . 13 Melee 38 | . . . . . . . 2 . . . . 10 5 21 Ram . | . . . . . . . . . . . . . . . Kick . | . . . . . . . . . . . . . . . Crush . | . . . . . . . . . . . . . . . Escape Stasis . | . . . . . . . . . . . . . . . Rewire . | . . . . . . . . . . . . . . . Trap . | . . . . . . . . . . . . . . . Miscellaneous . | . . . . . . . . . . . . . . . Route ------- -11/Scrapyard -10/Materials -10/Subcaves -8/Scraptown (discovered 2 exits: *Fac x2) -6/Factory -6/Waste -6/Factory -5/Factory -5/Upper Caves -5/Warlord -4/Proximity Caves -4/Factory (discovered 2 exits: *Upp x2) -4/Upper Caves -4/Upper Caves -3/Research (discovered 1 exit: Qua) History --------- Turn | Location | Event 25 | -11/Scrapyard | Discovered new exit (range 15) 95 | -11/Scrapyard | Entered Materials 151 | -10/Materials | Discovered new exit (range 5) 160 | -10/Materials | Identified exit to Subcaves 161 | -10/Materials | Entered Subcaves 162 | -10/Subcaves | Approached by a straggling Scientist 178 | -10/Subcaves | Identified exit to Scraptown 179 | -10/Subcaves | Entered Scraptown 237 | -8/Scraptown | Visited TADAMA 256 | -8/Scraptown | Visited Cyclists 266 | -8/Scraptown | Visited Shadow of the Wyrm 284 | -8/Scraptown | Visited The Evicted 300 | -8/Scraptown | Visited IN-MT5's Study 314 | -8/Scraptown | Build established: Mutant 380 | -8/Scraptown | Discovered new exit (range 11) 389 | -8/Scraptown | Identified exit to Factory 442 | -8/Scraptown | Visited Red Mages 541 | -8/Scraptown | Visited UFD Registry 541 | -8/Scraptown | Registered with UFD as "Hammerwalker" 562 | -8/Scraptown | Visited DA-N13 Charitable Foundation 567 | -8/Scraptown | Found DCF Scrap (29 items) 797 | -8/Scraptown | Heard Great Nut preacher, LISTEN AND RECITE! 1078 | -8/Scraptown | Visited Scrapoid Research Area 1108 | -8/Scraptown | Visited Science Guys 1184 | -8/Scraptown | Visited Botcube Research 1203 | -8/Scraptown | Found Lrg. Botcube 1234 | -8/Scraptown | Visited Scrap Suit Storage 1283 | -8/Scraptown | Visited Modified Component R&D 1308 | -8/Scraptown | Received an X-ray algorithm 1372 | -8/Scraptown | Ran an X-ray algorithm 1608 | -8/Scraptown | Visited Research Penetration Think Tank 1646 | -8/Scraptown | Visited Analyses Database 1974 | -8/Scraptown | Discovered exit to Factory (range 3) 1983 | -8/Scraptown | Entered Factory 1983 | -6/Factory | Evolved 8 slots: Utility x8 2002 | -6/Factory | Central database locked down 2156 | -6/Factory | Sucked down chute 2156 | -6/Factory | Entered Waste 2157 | -6/Waste | Joined by Warlord forces that had cleared the area 2290 | -6/Waste | Build established: Derelict-Skirmisher 2294 | -6/Waste | Discovered new exit (range 16) 2455 | -6/Waste | Identified exit to Factory 2485 | -6/Waste | Entered Factory 2485 | -6/Factory | Accompanied by 20 allies 2673 | -6/Factory | Lost 4 allies 2691 | -6/Factory | Lrg. Botcube activated 2715 | -6/Factory | Lrg. Botcube completed mutation into legged form, armed with 2 guns. 2732 | -6/Factory | Discovered new exit (range 21) 2765 | -6/Factory | Identified exit to Factory 2798 | -6/Factory | Entered another Factory area 2798 | -5/Factory | Accompanied by 16 allies 2798 | -5/Factory | Evolved 2 slots: Utility x2 2954 | -5/Factory | Lost 3 parts (1p2u) 2969 | -5/Factory | Lost 7 allies 3128 | -5/Factory | Central database locked down 3262 | -5/Factory | Build established: Derelict-Assassin 3337 | -5/Factory | Lost 3 allies 3495 | -5/Factory | Garrison activated, responded to threat 3649 | -5/Factory | Discovered new exit (range 4) 3654 | -5/Factory | Identified exit to Upper Caves 3656 | -5/Factory | Entered Upper Caves 3656 | -5/Upper Caves | Accompanied by 3 allies 3928 | -5/Upper Caves | Build established: Derelict-Skirmisher 3950 | -5/Upper Caves | Learned location of 1 exit from Factory 4148 | -5/Upper Caves | A Derelict revealed a hidden shortcut to "reach the base" 4155 | -5/Upper Caves | Identified exit to Warlord 4156 | -5/Upper Caves | Entered Warlord 4156 | -5/Warlord | Accompanied by 2 allies 4208 | -5/Warlord | Discovered new exit (range 12) 4222 | -5/Warlord | Identified exit to Proximity Caves 4226 | -5/Warlord | Entered Proximity Caves 4226 | -4/Proximity Caves | Accompanied by 2 allies 4621 | -4/Proximity Caves | Attracted the attention of an 0b10 checkpoint 5050 | -4/Proximity Caves | Attracted the attention of an 0b10 base 5598 | -4/Proximity Caves | Spotted B-86 Titan 5640 | -4/Proximity Caves | Discovered new exit (range 12) 5649 | -4/Proximity Caves | Learned Research stockpile data 5681 | -4/Proximity Caves | Identified exit to Factory 5683 | -4/Proximity Caves | Entered Factory 5683 | -4/Factory | Evolved 2 slots: Utility x2 5684 | -4/Factory | Identified exit to Upper Caves 5765 | -4/Factory | Discovered exit to Upper Caves (range 21) 5808 | -4/Factory | Entered Upper Caves 5810 | -4/Upper Caves | Spotted B-86 Titan 6129 | -4/Upper Caves | Learned Research interactive machine intel 6137 | -4/Upper Caves | Build established: Hacker-Ninja 6195 | -4/Upper Caves | Learned location of 1 exit from Proximity Caves 6230 | -4/Upper Caves | Discovered new exit (range 8) 6234 | -4/Upper Caves | Identified exit to Upper Caves 6252 | -4/Upper Caves | Entered another Upper Caves area 6533 | -4/Upper Caves | Discovered new exit (range 15) 6545 | -4/Upper Caves | Identified exit to Research 6569 | -4/Upper Caves | Entered Research 6569 | -3/Research | Evolved 2 slots: Utility x2 6570 | -3/Research | Identified exit to Quarantine 6572 | -3/Research | Loaded intel: 47 interactive machine locations 6619 | -3/Research | Spotted B-86 Titan 6655 | -3/Research | Spotted B-86 Titan 6768 | -3/Research | Found Prototype Processor 6768 | -3/Research | Identified Spectral Analyzer 6917 | -3/Research | Lost 7 parts (1n5u1w) 6980 | -3/Research | Self-destructed Last Messages --------------- 06887_ Lgt. Antimatter Reactor melted. 06887_ Xenon Bombardment Thruster melted. 06887_ S-43 Plague destroyed. 06890_ S-43 Plague knocked back. 06890_ S-43 Plague destroyed. 06896_ Acquired Hvy. Machine Gun. 06899_ Acquired 23 matter. 06900_ Acquired 1 matter. 06901_ Acquired 19 matter. 06902_ U-05 Engineer builds a Wall. 06920_ P-80 Master resets P-80 Master, system corruption cleaned. 06928_ Dropped Axe. 06928_ Adv. Power Amplifier destroyed. 06929_ Acquired Hvy. Mace. 06949_ Hardcell Cannon destroyed. 06953_ Lgt. Nuclear Core destroyed. 06957_ System corrupted: Substantial component data lost. 06958_ Imp. System Shield destroyed. 06959_ Antigrav System destroyed. 06962_ P-80 Master resets P-80 Master, system corruption cleaned. Map ----- +----------------------------------------------------+ | ?????????????????????????????????????????????????? | | ?????????????????????????????????????????????????? | | ?????????????????????????????????????????????????? | | ?????????????????????????? ??????????????????????? | | ?????????????????????????? ??????????????????????? | | ?????????????????????????? ??????????????????????? | | ?????????????????????????? ??????????????????????? | | ?????????????????????????? ??????????????????????? | | ?????????????????????????? ??????????????????????? | | ?????????????????????????? ??????????????????????? | | ?????????????????????????? ??????????????????????? | | ?????????????????????????? ??????????????????????? | | ?????????????????????????? ??????????????????????? | | ?????????????????????????? ??????????????????????? | | ?????????????????????????# #?????????????????????? | | ?????????????????????????# #???#?????????????????? | | ?????????????????????????# #?????????????????????? | | ?????????????????????????# #?????????????????????? | | ???????????????????????!?# #?????????????????????? | | ?????????????????????????# #?????????????????????? | | ?????????????????????????# #?????????????????????? | | ?????????????????????????# #?????????????????????? | | ?????????????????????????# #?????????????????????? | | ??????+#############+##### #####?????????????????? | | ?? #?????????????????? | | ?? k @ #????????????????? | | ?? ^ #########???????## | | ??? w | | ?????#+######+##############p#############???? | | ?????????????????????????###/######?????????? ? | | ?????????????????????????# #????????? ?? | | ???""????????????????????# #???????? #??? | | ???"F????????????????????# #??????? #??? | | ???"""????????????""?????# ]######## #??? | | ???"""????????????T"?????# # #??? | | ??????????????????""?????# # #??? | | ?????????????????????????# """ # #??? | | ????????????????????????## """ / #??? | | ?????????????????????????# """ # ###+####??? | | ?????????????????????????########## #?????????? | | ?????????????????????????# ### #?????????? | | ?????????????????????????# #?????????? | | ??????????????????#??????# #?????????? | | ?????????????????????????# #?????????? | | ?????????????????????????# #?????????? | | ?????????????????????????# ########?????????? | | ?????????????????????????### ###????????????????? | | ???????????????????????????# #??????????????????? | | ???????????????????????????# #??????????????????? | | ???????????????????????????# ####??##???#???????? | +----------------------------------------------------+ Best States ------------- Heat Dissipation 46 Energy Generation 16 Energy Capacity 275 Matter Stores 450 Matter Capacity 450 Sight Range 24 Robot Scan Range 15 Terrain Scan Range 16 Terrain Scan Density 10 ECM Strength 1 Power Amplification 30 EM Shielding 2 Armor Coverage 150 Resistance: KI 20 Resistance: TH 20 Evasion (%) 51 Armor Integrity Analysis 30 Recoil Reduction 2 Offensive Hacking 10 Defensive Hacking 22 Item Schematics ----------------- None Robot Schematics ------------------ None Fabricated ------------ Nothing Repaired ---------- Nothing Studied --------- Arm. Treads | -6/Factory | Hacked Imp. Treads | -6/Factory | Hacked Mni. Grenade Launcher | -6/Factory | Hacked Cmb. Airjet | -5/Factory | Hacked Alien Tech Used ----------------- None Achievements -------------- Frankenstein Infodabbler Challenges ------------ None Game ------ Seed AntigravCouplerGreatsword Manual? 0 Play Time 01:19:14 Cumulative 40.4 hours Start 2026.01.20 @ 13:41:32 End 2026.01.20 @ 15:04:29 Sessions 1 Manual Loads 0 Difficulty Rogue Special Mode None Game No. 45 Rogue 45 Adventurer 0 Explorer 0 Win Type - Total 2 Types 1/0/0/1/0/0/0/0/0/0 Lore% 32 Gallery% 28 Achievement% 29 Wizard Run 0 Options --------- Layout 0 ASCII 0 Keyboard 0 Movement Mouse Keybinds 0 Fullscreen 2 Font 36/Smallcaps Map View 76x50 Zoom Use 0% Tactical HUD 1 Map Filters NONE Filters NONE Steam 1 RUN: 7af35100-7ec4-456b-9cfc-7d06a0163b8c